[Event "1st Sivas Buruciye Open 2019"]
[Site "Sivas"]
[Date "2019.08.22"]
[Round "7"]
[White "Annaberdiev, Meilis"]
[Black "Bagaturov, Giorgi"]
[Result "1/2-1/2"]
[ECO "D02"]
[WhiteElo "2518"]
[BlackElo "2417"]
[Annotator "ChessBase"]
[PlyCount "80"]
[EventDate "2019.08.19"]
[EventType "swiss"]
[EventCountry "TUR"]
[SourceTitle "playchess.com"]
[Source "ChessBase"]
[SourceQuality "1"]
[TimeControl "5400+30"]

1. d4 d5 2. Bf4 Nf6 3. e3 c5 4. c3 e6 5. Nd2 Nc6 6. Ngf3 Bd6 7. Bg3 O-O 8. Bd3 b6 9. Qe2 Bb7 10. Rd1 Qe7 11. e4 dxe4 12. Nxe4 Nxe4 13. Bxe4 Rad8 14. dxc5 Bxc5 15. O-O Rxd1 16. Rxd1 Rd8 17. b4 Bd6 18. Bh4 f6 19. Qc2 g6 20. Bg3 Bxg3 21. hxg3 e5 22. g4 Kg7 23. Re1 Rd6 24. a3 a5 25. Qb3 axb4 {[%emt 1:27:58]} 26. axb4 {[%emt 1:18:00]} Nd8 {[%emt 0:03:38]} 27. g5 {[%emt 0:01:30]} Bxe4 {[%emt 0:01:05]} 28. gxf6+ {[%emt 0:00:30]} Rxf6 {[%emt 0:01:32]} 29. Rxe4 {[%emt 0:00:30]} Nf7 {[%emt 0:00:12]} 30. c4 {[%emt 0:03:30]} Rf4 {[%emt 0:03:13]} 31. Rxf4 {[%emt 0:01:30]} exf4 {[%emt 0:00:30]} 32. c5 {[%emt 0:00:00]} bxc5 {[%emt 0:00:48]} 33. Qc3+ {[%emt 0:00:00]} Qf6 {[%emt 0:00:07]} 34. Qxc5 {[%emt 0:00:00]} g5 {[%emt 0:01:37]} 35. b5 {[%emt 0:00:00]} Qa1+ {[%emt 0:01:48]} 36. Kh2 {[%emt 0:00:30]} g4 {[%emt 0:00:07]} 37. Ng5 {[%emt 0:12:09]} Qe1 {[%emt 0:00:53]} 38. Qd4+ {[%emt 0:00:20]} Kg6 {[%emt 0:02:47]} 39. Ne4 {[%emt 0:00:40]} Kf5 {[%emt 0:00:24]} 40. Qd5+ {[%emt 0:09:44]} Ne5 {[%emt 0:01:04]} 1/2-1/2

[Event "1st Sivas Buruciye Open 2019"]
[Site "Sivas"]
[Date "2019.08.22"]
[Round "7"]
[White "Saraci, Nderim"]
[Black "Lortkipanidze, Nodar"]
[Result "1/2-1/2"]
[ECO "B11"]
[WhiteElo "2398"]
[BlackElo "2336"]
[Annotator "NA"]
[PlyCount "97"]
[EventDate "2019.08.19"]
[EventType "swiss"]
[EventCountry "TUR"]
[SourceTitle "playchess.com"]
[Source "ChessBase"]
[SourceQuality "1"]
[TimeControl "5400+30"]

1. e4 c6 2. Nc3 d5 3. Nf3 a6 4. d4 Bg4 5. Be2 e6 6. O-O Nf6 7. Ne5 Bxe2 8. Qxe2 Be7 9. Rd1 O-O 10. h3 Nbd7 11. Bf4 Nxe5 12. Bxe5 Nd7 13. Bg3 b5 14. a4 b4 15. Nb1 Nf6 16. Nd2 Qb6 17. Be5 Nd7 18. Nf3 Bf6 19. Bd6 Rfe8 20. a5 Qb5 21. Qxb5 axb5 22. exd5 cxd5 23. Bxb4 Rec8 24. c3 Bd8 25. Ra3 Nb8 26. Ne5 f6 27. Nd3 Kf7 28. Rda1 Nc6 29. a6 e5 30. dxe5 fxe5 31. Bc5 Be7 32. Bxe7 Kxe7 33. Rb3 Rcb8 34. Nb4 Kd6 35. Nxc6 Kxc6 36. a7 Rb7 37. Rba3 Kc5 38. Kf1 Kc4 39. Ke2 Rf7 40. f3 Rf6 41. Ra6 d4 42. cxd4 exd4 {[%emt 1:08:00]} 43. Rc1+ {[%emt 1:38:26]} Kb3 {[%emt 0:01:30]} 44. Ra3+ {[%emt 0:10:06]} Kxb2 {[%emt 0:01:30]} 45. Raa1 {[%emt 0:02:39]} Rc6 {[%emt 0:04:30]} 46. Rab1+ {[%emt 0:00:20]} Ka2 {[%emt 0:00:30]} 47. Ra1+ {[%emt 0:00:30]} Kb2 {[%emt 0:00:00]} 48. Rab1+ {[%emt 0:00:19]} Ka2 {[%emt 0:00:00]} 49. Ra1+ {[%emt 0:00:39]} 1/2-1/2

[Event "1st Sivas Buruciye Open 2019"]
[Site "Sivas"]
[Date "2019.08.22"]
[Round "7"]
[White "Barsov, Alexei"]
[Black "Aliyev, Rasim"]
[Result "1-0"]
[ECO "D36"]
[WhiteElo "2383"]
[BlackElo "2139"]
[Annotator "NA"]
[PlyCount "79"]
[EventDate "2019.08.19"]
[EventType "swiss"]
[EventCountry "TUR"]
[SourceTitle "playchess.com"]
[Source "ChessBase"]
[SourceQuality "1"]
[TimeControl "5400+30"]

1. d4 d5 2. c4 e6 3. Nc3 Nf6 4. cxd5 exd5 5. Bg5 Nbd7 6. e3 c6 7. Bd3 Be7 8. Qc2 O-O 9. Nf3 Re8 10. O-O Nf8 11. h3 Ne4 12. Bf4 Nd6 13. b4 Be6 14. b5 Rc8 15. bxc6 Rxc6 16. Ne5 Rc8 17. Qb3 Qa5 18. Rfc1 f6 19. Nf3 a6 20. a4 Ne4 21. Ne2 b6 22. Rab1 Rxc1+ 23. Rxc1 Bd8 24. Nc3 g5 25. Bh2 h5 26. Qc2 Nxc3 27. Qxc3 Qxc3 28. Rxc3 Bd7 29. Bxa6 Bxa4 30. Bb7 b5 31. Bxd5+ Kg7 32. Rc8 b4 33. Ra8 Bd7 34. Bd6 g4 35. hxg4 hxg4 36. Nd2 f5 37. g3 Kg6 38. Nc4 Bf6 39. Rxe8 Bxe8 40. Bxf8 1-0

[Event "1st Sivas Buruciye Open 2019"]
[Site "Sivas"]
[Date "2019.08.22"]
[Round "7"]
[White "Sevdimaliyev, Urfan"]
[Black "Temizkan, Denizcan"]
[Result "1-0"]
[ECO "D03"]
[WhiteElo "2348"]
[BlackElo "2175"]
[Annotator "NA"]
[PlyCount "83"]
[EventDate "2019.08.19"]
[EventType "swiss"]
[EventCountry "TUR"]
[SourceTitle "playchess.com"]
[Source "ChessBase"]
[SourceQuality "1"]
[TimeControl "5400+30"]

1. d4 d5 2. Nf3 Nf6 3. Bg5 e6 4. Nbd2 Be7 5. e3 O-O 6. Bd3 Nbd7 7. c3 c5 8. Ne5 h6 9. Bh4 Nxe5 10. dxe5 Nd7 11. Bxe7 Qxe7 12. f4 f6 13. exf6 Rxf6 14. Nf3 c4 15. Bc2 Qc5 16. Qd2 b5 17. e4 dxe4 18. Bxe4 Rb8 19. O-O-O Qc7 20. Ne5 Nxe5 21. fxe5 Rf8 22. Qd6 Qxd6 23. exd6 Bb7 {[%emt 1:21:30]} 24. Rhe1 {[%emt 1:24:23]} Bxe4 {[%emt 0:00:30]} 25. Rxe4 {[%emt 0:00:30]} Rf6 {[%emt 0:00:30]} 26. Re5 {[%emt 0:02:01]} a6 {[%emt 0:01:34]} 27. Rc5 {[%emt 0:01:17]} Rf7 {[%emt 0:05:27]} 28. Rc6 {[%emt 0:02:15]} Rd7 {[%emt 0:04:58]} 29. Rxa6 {[%emt 0:00:45]} Kf7 {[%emt 0:00:06]} 30. a4 {[%emt 0:03:56]} bxa4 {[%emt 0:02:49]} 31. Rxa4 {[%emt 0:00:47]} Rc8 {[%emt 0:00:05]} 32. Rd4 {[%emt 0:01:22]} e5 {[%emt 0:00:08]} 33. Rdxc4 {[%emt 0:00:00]} Rxc4 {[%emt 0:00:27]} 34. Rxc4 {[%emt 0:00:00]} Rxd6 {[%emt 0:00:00]} 35. b4 {[%emt 0:01:12]} Ke6 {[%emt 0:00:00]} 36. b5 {[%emt 0:00:48]} Rb6 {[%emt 0:00:27]} 37. Rb4 {[%emt 0:01:34]} Kd5 {[%emt 0:00:30]} 38. Kd2 {[%emt 0:00:00]} Kc5 {[%emt 0:00:00]} 39. Ke3 {[%emt 0:01:08]} Kd5 {[%emt 0:00:33]} 40. g3 {[%emt 0:01:19]} h5 {[%emt 0:00:07]} 41. h4 {[%emt 0:01:34]} g6 {[%emt 0:00:12]} 42. Kd3 {[%emt 0:00:19]} 1-0

[Event "1st Sivas Buruciye Open 2019"]
[Site "Sivas"]
[Date "2019.08.22"]
[Round "7"]
[White "Arman, Deniz"]
[Black "Idrisov, Tabriz"]
[Result "1-0"]
[ECO "B06"]
[WhiteElo "2347"]
[BlackElo "2108"]
[Annotator "NA"]
[PlyCount "125"]
[EventDate "2019.08.19"]
[EventType "swiss"]
[EventCountry "TUR"]
[SourceTitle "playchess.com"]
[Source "ChessBase"]
[SourceQuality "1"]
[TimeControl "5400+30"]

1. e4 d6 2. d4 g6 3. h4 h6 4. Be3 Bg7 5. Qd2 c5 6. Ne2 cxd4 7. Nxd4 Nc6 8. Nc3 Nf6 9. f3 Bd7 10. O-O-O a6 11. g4 b5 12. Kb1 Qa5 13. Nb3 Qc7 14. Be2 b4 15. Nd5 Nxd5 16. exd5 Ne5 17. Qxb4 a5 18. Qb6 Qxb6 19. Bxb6 a4 20. Nc1 O-O 21. Bd4 Ra5 22. Bc3 Rc5 23. a3 Rfc8 24. Na2 f5 25. g5 h5 26. Nb4 Rxc3 27. bxc3 Rxc3 28. f4 Ng4 29. Rd3 Rc7 30. Rf3 Bd4 31. Rd1 Bc5 {[%emt 1:30:51]} 32. c3 {[%emt 1:15:00]} Nf2 {[%emt 0:01:33]} 33. Rc1 {[%emt 0:02:30]} Ne4 {[%emt 0:01:02]} 34. Kb2 {[%emt 0:00:30]} Nd2 {[%emt 0:02:49]} 35. Rh3 {[%emt 0:00:00]} Rc8 {[%emt 0:00:55]} 36. Bd3 {[%emt 0:00:00]} Kf7 {[%emt 0:00:31]} 37. Re1 {[%emt 0:00:30]} Ne4 {[%emt 0:03:41]} 38. Bxe4 {[%emt 0:01:30]} fxe4 {[%emt 0:00:30]} 39. Rh2 {[%emt 0:00:30]} Bf5 {[%emt 0:00:30]} 40. Rhe2 {[%emt 0:00:30]} Rc7 {[%emt 0:00:30]} 41. Rxe4 {[%emt 0:00:30]} Bxe4 {[%emt 0:00:30]} 42. Rxe4 {[%emt 0:00:30]} Bf2 {[%emt 0:00:30]} 43. Nd3 {[%emt 0:00:30]} Rb7+ {[%emt 0:05:32]} 44. Kc2 {[%emt 0:00:00]} Bg1 {[%emt 0:01:13]} 45. Rxa4 {[%emt 0:00:00]} e6 {[%emt 0:00:19]} 46. Ra6 {[%emt 0:00:30]} Ke7 {[%emt 0:00:25]} 47. dxe6 {[%emt 0:01:30]} Kxe6 {[%emt 0:00:01]} 48. c4 {[%emt 0:00:30]} Rc7 {[%emt 0:01:41]} 49. Kc3 {[%emt 0:00:30]} Kf5 {[%emt 0:01:05]} 50. Rxd6 {[%emt 0:00:30]} Kg4 {[%emt 0:00:00]} 51. Rxg6 {[%emt 0:00:30]} Kxh4 {[%emt 0:00:00]} 52. f5 {[%emt 0:00:00]} Be3 {[%emt 0:00:26]} 53. Ne5 {[%emt 0:01:00]} Rc5 {[%emt 0:01:08]} 54. Nf3+ {[%emt 0:04:30]} Kg3 {[%emt 0:00:25]} 55. Nd4 {[%emt 0:01:30]} Bxd4+ {[%emt 0:00:52]} 56. Kxd4 {[%emt 0:00:30]} Rxf5 {[%emt 0:00:02]} 57. c5 {[%emt 0:00:30]} Rf3 {[%emt 0:00:19]} 58. c6 {[%emt 0:00:30]} Rxa3 {[%emt 0:00:04]} 59. Rh6 {[%emt 0:00:00]} Ra4+ {[%emt 0:01:07]} 60. Kd5 {[%emt 0:01:00]} Ra5+ {[%emt 0:01:15]} 61. Kd6 {[%emt 0:00:30]} Rxg5 {[%emt 0:00:07]} 62. c7 {[%emt 0:00:00]} Rg8 {[%emt 0:00:27]} 63. Rxh5 {[%emt 0:00:00]} 1-0

[Event "1st Sivas Buruciye Open 2019"]
[Site "Sivas"]
[Date "2019.08.22"]
[Round "7"]
[White "Darban, Morteza"]
[Black "Yarashov, Azat"]
[Result "1-0"]
[ECO "B06"]
[WhiteElo "2280"]
[BlackElo "2156"]
[Annotator "NA"]
[PlyCount "85"]
[EventDate "2019.08.19"]
[EventType "swiss"]
[EventCountry "TUR"]
[SourceTitle "playchess.com"]
[Source "ChessBase"]
[SourceQuality "1"]
[TimeControl "5400+30"]

1. e4 g6 2. d4 Bg7 3. Nf3 c6 4. h3 d6 5. Bd3 Nd7 6. O-O Qc7 7. Qe2 e5 8. dxe5 dxe5 9. b3 Ne7 10. a4 O-O 11. Ba3 Nf6 12. Nbd2 Nh5 13. Nc4 Rd8 14. Rfd1 h6 15. Qe3 b5 16. Nb2 bxa4 17. Nxa4 g5 18. Be2 Nf4 19. Rxd8+ Qxd8 20. Rd1 Qe8 21. Bf1 Neg6 22. Bc5 g4 23. hxg4 Bxg4 24. Rd2 h5 25. Ne1 Bh6 26. Qc3 Kh7 {[%emt 1:37:21]} 27. Be3 {[%emt 1:07:30]} h4 {[%emt 0:00:30]} 28. Nb2 {[%emt 0:04:30]} Qe6 {[%emt 0:00:35]} 29. Nc4 {[%emt 0:02:30]} Qf6 {[%emt 0:00:55]} 30. Kh2 {[%emt 0:02:30]} Rg8 {[%emt 0:00:30]} 31. Rd6 {[%emt 0:08:30]} Ne6 {[%emt 0:01:19]} 32. Bxh6 {[%emt 0:04:03]} Kxh6 {[%emt 0:00:05]} 33. Ne3 {[%emt 0:02:04]} Bh5 {[%emt 0:01:39]} 34. Nf5+ {[%emt 0:00:31]} Kh7 {[%emt 0:00:02]} 35. Qe3 {[%emt 0:01:05]} Ngf4 {[%emt 0:00:25]} 36. Rxc6 {[%emt 0:01:30]} Bg4 {[%emt 0:00:28]} 37. Ra6 {[%emt 0:01:38]} Bxf5 {[%emt 0:00:28]} 38. exf5 {[%emt 0:00:35]} Qxf5 {[%emt 0:00:02]} 39. Nd3 {[%emt 0:03:10]} Ng6 {[%emt 0:01:49]} 40. Ra5 {[%emt 0:00:57]} Ng5 {[%emt 0:02:43]} 41. Nxe5 {[%emt 0:01:44]} h3 {[%emt 0:00:29]} 42. Bd3 {[%emt 0:01:27]} Ne4 {[%emt 0:01:09]} 43. Bxe4 {[%emt 0:00:48]} 1-0

[Event "1st Sivas Buruciye Open 2019"]
[Site "Sivas"]
[Date "2019.08.22"]
[Round "7"]
[White "Bayramov, Elvin"]
[Black "Abdulov, Orkhan"]
[Result "0-1"]
[ECO "C29"]
[WhiteElo "2198"]
[BlackElo "2397"]
[Annotator "NA"]
[PlyCount "117"]
[EventDate "2019.08.19"]
[EventType "swiss"]
[EventCountry "TUR"]
[SourceTitle "playchess.com"]
[Source "ChessBase"]
[SourceQuality "1"]
[TimeControl "5400+30"]

1. e4 e5 2. Nc3 Nf6 3. f4 d5 4. fxe5 Nxe4 5. Qf3 Nxc3 6. bxc3 c5 7. Bb5+ Bd7 8. Bxd7+ Qxd7 9. Ne2 Nc6 10. O-O Nxe5 11. Qe3 Qe7 12. d4 Nc6 13. Qf3 O-O-O 14. Rb1 f6 15. Ba3 Qd7 16. Bxc5 Bxc5 17. dxc5 Qe7 18. Qf2 Rhe8 19. Ng3 g6 20. Rfe1 Qf8 21. Ne2 f5 22. Nf4 Qf7 23. Rxe8 Rxe8 24. Rd1 Re5 25. Qd2 Qe7 26. Kh1 Qg5 27. Qf2 Qg4 28. Qf1 Re4 29. g3 d4 30. cxd4 Nxd4 31. c6 {[%emt 1:22:30]} Nxc6 {[%emt 1:24:30]} 32. Rd3 {[%emt 0:02:30]} Qg5 {[%emt 0:01:30]} 33. Qa1 {[%emt 0:00:30]} Re5 {[%emt 0:01:07]} 34. Qc3 {[%emt 0:03:37]} Qe7 {[%emt 0:00:31]} 35. Qb3 {[%emt 0:02:01]} Re1+ {[%emt 0:03:46]} 36. Kg2 {[%emt 0:00:03]} Qe8 {[%emt 0:00:05]} 37. Rd6 {[%emt 0:03:13]} Re5 {[%emt 0:04:53]} 38. Qc4 {[%emt 0:03:33]} Kb8 {[%emt 0:00:46]} 39. Re6 {[%emt 0:02:06]} Rxe6 {[%emt 0:03:02]} 40. Nxe6 {[%emt 0:00:01]} Qe7 {[%emt 0:00:58]} 41. Qd5 {[%emt 0:01:06]} a6 {[%emt 0:01:12]} 42. c4 {[%emt 0:01:11]} Kc8 {[%emt 0:03:36]} 43. Nc5 {[%emt 0:01:17]} Nb4 {[%emt 0:00:35]} 44. Qg8+ {[%emt 0:00:51]} Kc7 {[%emt 0:00:05]} 45. Ne6+ {[%emt 0:00:00]} Kd6 {[%emt 0:01:03]} 46. Nf4 {[%emt 0:01:14]} g5 {[%emt 0:00:47]} 47. Qb8+ {[%emt 0:02:18]} Kc5 {[%emt 0:00:22]} 48. Qc8+ {[%emt 0:00:09]} Kd4 {[%emt 0:00:25]} 49. Ne6+ {[%emt 0:00:37]} Kc3 {[%emt 0:00:36]} 50. Qh8+ {[%emt 0:01:12]} Kxc4 {[%emt 0:01:09]} 51. Qd4+ {[%emt 0:01:04]} Kb5 {[%emt 0:00:06]} 52. Qe5+ {[%emt 0:00:41]} Kb6 {[%emt 0:00:19]} 53. Qe3+ {[%emt 0:01:52]} Ka5 {[%emt 0:01:42]} 54. Qe5+ {[%emt 0:00:39]} b5 {[%emt 0:00:26]} 55. Qxf5 {[%emt 0:01:28]} Nxa2 {[%emt 0:00:26]} 56. Nxg5 {[%emt 0:01:26]} Nc3 {[%emt 0:00:50]} 57. Ne6 {[%emt 0:00:18]} Qd6 {[%emt 0:00:20]} 58. Nf4 {[%emt 0:00:49]} Qc6+ {[%emt 0:00:33]} 59. Kg1 {[%emt 0:01:14]} 0-1

[Event "1st Sivas Buruciye Open 2019"]
[Site "Sivas"]
[Date "2019.08.22"]
[Round "7"]
[White "Ghaffarifar, Matin"]
[Black "Gasimov, Parviz"]
[Result "0-1"]
[ECO "E09"]
[WhiteElo "2082"]
[BlackElo "2342"]
[Annotator "NA"]
[PlyCount "146"]
[EventDate "2019.08.19"]
[EventType "swiss"]
[EventCountry "TUR"]
[SourceTitle "playchess.com"]
[Source "ChessBase"]
[SourceQuality "1"]
[TimeControl "5400+30"]

1. d4 d5 2. c4 c6 3. Nf3 Nf6 4. g3 e6 5. Bg2 Nbd7 6. O-O Be7 7. Nbd2 O-O 8. Qc2 b6 9. e4 Ba6 10. Rd1 Rc8 11. Ne5 Nxe5 12. dxe5 Ng4 13. Qa4 Bxc4 14. Nxc4 b5 15. Qc2 bxc4 16. Qe2 Nh6 17. Be3 Kh8 18. Qh5 Ng8 19. exd5 cxd5 20. Bxa7 Qa5 21. Bd4 Bc5 22. Qh4 {[%emt 1:25:02]} Ne7 {[%emt 1:21:00]} 23. Bxc5 {[%emt 0:00:30]} Qxc5 {[%emt 0:00:30]} 24. b3 {[%emt 0:03:10]} Ng6 {[%emt 0:04:32]} 25. Qh5 {[%emt 0:00:08]} c3 {[%emt 0:02:06]} 26. Rac1 {[%emt 0:01:44]} f6 {[%emt 0:03:38]} 27. exf6 {[%emt 0:00:43]} Rxf6 {[%emt 0:00:07]} 28. Qe2 {[%emt 0:00:00]} Rcf8 {[%emt 0:04:05]} 29. Qe3 {[%emt 0:00:13]} Qa5 {[%emt 0:03:58]} 30. Rc2 {[%emt 0:01:32]} Rc8 {[%emt 0:00:50]} 31. Rd3 {[%emt 0:00:26]} Rd8 {[%emt 0:01:21]} 32. Qd4 {[%emt 0:01:06]} Qa6 {[%emt 0:02:01]} 33. Qxc3 {[%emt 0:01:15]} Ne5 {[%emt 0:00:17]} 34. Re3 {[%emt 0:02:14]} d4 {[%emt 0:01:37]} 35. Qc7 {[%emt 0:01:14]} Nf7 {[%emt 0:00:33]} 36. Bf1 {[%emt 0:02:07]} Qa8 {[%emt 0:00:05]} 37. Re1 {[%emt 0:01:04]} Rf8 {[%emt 0:00:58]} 38. Bg2 {[%emt 0:00:52]} Qa6 {[%emt 0:00:35]} 39. Qc5 {[%emt 0:00:32]} Rd8 {[%emt 0:00:26]} 40. f4 {[%emt 0:00:53]} d3 {[%emt 0:00:41]} 41. Rd2 {[%emt 0:00:39]} Rf5 {[%emt 0:00:19]} 42. Qc3 {[%emt 0:00:39]} Qb6+ {[%emt 0:00:13]} 43. Kh1 {[%emt 0:01:16]} Rc5 {[%emt 0:00:01]} 44. Qb2 {[%emt 0:00:00]} Nh6 {[%emt 0:00:32]} 45. Be4 {[%emt 0:00:27]} Ng4 {[%emt 0:01:28]} 46. h3 {[%emt 0:00:26]} Rh5 {[%emt 0:00:33]} 47. Kg2 {[%emt 0:01:33]} Ne3+ {[%emt 0:00:10]} 48. Kf3 {[%emt 0:01:54]} Nc2 {[%emt 0:00:17]} 49. Rxc2 {[%emt 0:02:13]} dxc2 {[%emt 0:00:01]} 50. Qxc2 {[%emt 0:00:04]} Rxh3 {[%emt 0:00:19]} 51. Rd1 {[%emt 0:00:25]} Rxd1 {[%emt 0:01:04]} 52. Qxd1 {[%emt 0:00:30]} Rh2 {[%emt 0:00:30]} 53. Qf1 {[%emt 0:00:30]} Rxa2 {[%emt 0:00:17]} 54. Qh1 {[%emt 0:01:00]} Qf2+ {[%emt 0:01:25]} 55. Kg4 {[%emt 0:00:03]} Qe2+ {[%emt 0:00:00]} 56. Bf3 {[%emt 0:00:14]} Qd3 {[%emt 0:00:54]} 57. Be4 {[%emt 0:00:47]} Qe2+ {[%emt 0:00:01]} 58. Bf3 {[%emt 0:00:00]} Qh2 {[%emt 0:00:47]} 59. Qxh2 {[%emt 0:01:57]} Rxh2 {[%emt 0:00:01]} 60. Bc6 {[%emt 0:00:00]} Kg8 {[%emt 0:01:07]} 61. b4 {[%emt 0:00:00]} Rb2 {[%emt 0:00:02]} 62. b5 {[%emt 0:00:00]} Rb3 {[%emt 0:00:00]} 63. Kh4 {[%emt 0:01:32]} Kf7 {[%emt 0:00:19]} 64. g4 {[%emt 0:00:33]} Kf6 {[%emt 0:00:50]} 65. Bd7 {[%emt 0:00:28]} Ke7 {[%emt 0:01:10]} 66. Bc6 {[%emt 0:00:06]} Kf6 {[%emt 0:00:00]} 67. Be4 {[%emt 0:00:46]} h6 {[%emt 0:01:15]} 68. g5+ {[%emt 0:00:24]} hxg5+ {[%emt 0:00:30]} 69. fxg5+ {[%emt 0:00:01]} Ke5 {[%emt 0:00:00]} 70. Bc6 {[%emt 0:00:10]} Kf5 {[%emt 0:00:00]} 71. Be8 {[%emt 0:01:26]} g6 {[%emt 0:00:30]} 72. Bd7 {[%emt 0:00:08]} Rb4+ {[%emt 0:00:29]} 73. Kh3 {[%emt 0:00:00]} Kxg5 {[%emt 0:00:00]} 0-1

[Event "1st Sivas Buruciye Open 2019"]
[Site "Sivas"]
[Date "2019.08.22"]
[Round "7"]
[White "Amanmuradow, Atajan"]
[Black "Altundal, Arda"]
[Result "1/2-1/2"]
[ECO "D05"]
[WhiteElo "1794"]
[BlackElo "1659"]
[Annotator "NA"]
[PlyCount "118"]
[EventDate "2019.08.19"]
[EventType "swiss"]
[EventCountry "TUR"]
[SourceTitle "playchess.com"]
[Source "ChessBase"]
[SourceQuality "1"]
[TimeControl "5400+30"]

1. d4 d5 2. Nf3 Nf6 3. e3 e6 4. b3 c5 5. Bb2 Nc6 6. Nbd2 Bd6 7. c4 O-O 8. Bd3 b6 9. O-O Bb7 10. a3 Ne7 11. Ne5 Ng6 12. f4 Ne4 13. Ndf3 Ne7 14. Nd2 f6 15. Nef3 Nf5 16. Qe2 cxd4 17. Nxd4 Nxd4 18. exd4 f5 19. Qe3 Rc8 20. Nf3 Qe7 21. Ne5 Rc7 22. Qe2 Bxe5 23. fxe5 Qg5 {[%emt 1:38:08]} 24. Rac1 {[%emt 1:12:00]} Rfc8 {[%emt 0:01:37]} 25. Rc2 {[%emt 0:00:30]} Qe7 {[%emt 0:01:51]} 26. Rfc1 {[%emt 0:06:30]} a5 {[%emt 0:00:05]} 27. Qe3 {[%emt 0:04:41]} Qg5 {[%emt 0:00:41]} 28. Qxg5 {[%emt 0:00:46]} Nxg5 {[%emt 0:00:02]} 29. c5 {[%emt 0:00:03]} bxc5 {[%emt 0:01:11]} 30. dxc5 {[%emt 0:00:30]} Bc6 {[%emt 0:00:14]} 31. Bc3 {[%emt 0:04:57]} a4 {[%emt 0:00:46]} 32. b4 {[%emt 0:02:39]} Rb8 {[%emt 0:00:11]} 33. Bd4 {[%emt 0:00:29]} Nf7 {[%emt 0:00:35]} 34. Rb2 {[%emt 0:00:40]} Bb5 {[%emt 0:00:19]} 35. Bxb5 {[%emt 0:02:15]} Rxb5 {[%emt 0:00:30]} 36. c6 {[%emt 0:00:00]} Nd8 {[%emt 0:00:00]} 37. Rbc2 {[%emt 0:00:00]} Kf7 {[%emt 0:00:26]} 38. Kf2 {[%emt 0:00:02]} g5 {[%emt 0:01:29]} 39. g3 {[%emt 0:00:19]} Kg6 {[%emt 0:00:18]} 40. Ke3 {[%emt 0:01:51]} h6 {[%emt 0:00:28]} 41. h3 {[%emt 0:00:18]} Kf7 {[%emt 0:00:25]} 42. Kf3 {[%emt 0:00:24]} Kg6 {[%emt 0:00:08]} 43. h4 {[%emt 0:03:35]} g4+ {[%emt 0:00:43]} 44. Ke3 {[%emt 0:00:39]} Kh5 {[%emt 0:00:08]} 45. Kf2 {[%emt 0:00:46]} Kg6 {[%emt 0:00:06]} 46. Ke3 {[%emt 0:00:38]} Kh5 {[%emt 0:01:52]} 47. Kf2 {[%emt 0:05:15]} Kg6 {[%emt 0:00:05]} 48. h5+ {[%emt 0:00:00]} Kg7 {[%emt 0:01:00]} 49. Ke3 {[%emt 0:00:10]} Kf7 {[%emt 0:00:22]} 50. Kd3 {[%emt 0:00:01]} Kg7 {[%emt 0:00:16]} 51. Ke3 {[%emt 0:01:40]} Kf7 {[%emt 0:00:16]} 52. Kf4 {[%emt 0:00:02]} Ke8 {[%emt 0:00:34]} 53. Bc5 {[%emt 0:01:56]} Rxc6 {[%emt 0:00:52]} 54. Bd6 {[%emt 0:00:02]} Kd7 {[%emt 0:00:41]} 55. Ke3 {[%emt 0:01:03]} Rxc2 {[%emt 0:01:01]} 56. Rxc2 {[%emt 0:00:04]} Nc6 {[%emt 0:00:00]} 57. Kf4 {[%emt 0:00:20]} d4 {[%emt 0:00:31]} 58. Bc5 {[%emt 0:00:05]} Ne7 {[%emt 0:00:36]} 59. Bxe7 {[%emt 0:01:33]} Kxe7 {[%emt 0:00:05]} 1/2-1/2

[Event "1st Sivas Buruciye Open 2019"]
[Site "Sivas"]
[Date "2019.08.22"]
[Round "7"]
[White "Taze, Bulent"]
[Black "Can, Ilhan"]
[Result "1/2-1/2"]
[ECO "A41"]
[WhiteElo "1743"]
[BlackElo "1683"]
[Annotator "NA"]
[PlyCount "22"]
[EventDate "2019.08.19"]
[EventType "swiss"]
[EventCountry "TUR"]
[SourceTitle "playchess.com"]
[Source "ChessBase"]
[SourceQuality "1"]
[TimeControl "5400+30"]

1. d4 {[%emt 0:00:30]} d6 {[%emt 0:04:30]} 2. c4 {[%emt 0:00:30]} e5 {[%emt 0:00:30]} 3. dxe5 {[%emt 0:00:30]} dxe5 {[%emt 0:00:00]} 4. Qxd8+ {[%emt 0:00:30]} Kxd8 {[%emt 0:00:00]} 5. Nc3 {[%emt 0:03:30]} c6 {[%emt 0:00:30]} 6. Bd2 {[%emt 0:00:30]} Be6 {[%emt 0:00:30]} 7. e4 {[%emt 0:00:30]} Nd7 {[%emt 0:01:30]} 8. Nf3 {[%emt 0:05:30]} f6 {[%emt 0:00:30]} 9. O-O-O {[%emt 0:00:30]} Kc7 {[%emt 0:00:00]} 10. Kc2 {[%emt 0:02:30]} h5 {[%emt 0:04:00]} 11. Be2 {[%emt 0:02:30]} g6 {[%emt 0:06:30]} 1/2-1/2

[Event "1st Sivas Buruciye Open 2019"]
[Site "Sivas"]
[Date "2019.08.22"]
[Round "7"]
[White "Zeynalov, Tural"]
[Black "Shahlarov, Faig"]
[Result "1-0"]
[ECO "B90"]
[WhiteElo "1709"]
[BlackElo "1798"]
[Annotator "NA"]
[PlyCount "133"]
[EventDate "2019.08.19"]
[EventType "swiss"]
[EventCountry "TUR"]
[SourceTitle "playchess.com"]
[Source "ChessBase"]
[SourceQuality "1"]
[TimeControl "5400+30"]

1. e4 c5 2. Nf3 d6 3. d4 cxd4 4. Nxd4 Nf6 5. Nc3 a6 6. h4 Nc6 7. h5 h6 8. Be2 e5 9. Nb3 Be6 10. f4 Na5 11. f5 Nxb3 12. axb3 Bd7 13. Bf3 Qb6 14. Qd3 Bc6 15. Be3 Qc7 16. O-O-O b5 17. Bf2 Rb8 18. Bh4 b4 19. Nd5 Nxd5 20. exd5 Bb5 21. Qd2 Qa5 22. Kb1 f6 23. Be1 Bd7 24. Be4 Qc7 25. Rh4 a5 26. Bd3 Be7 27. Qe2 O-O 28. Bd2 Kh8 29. Rg4 Rg8 30. Rg6 Be8 31. Qg4 Bxg6 32. hxg6 Rgc8 {[%emt 1:29:54]} 33. Rh1 {[%emt 1:16:30]} Bf8 {[%emt 0:00:16]} 34. Rh5 {[%emt 0:03:30]} a4 {[%emt 0:01:08]} 35. bxa4 {[%emt 0:04:30]} b3 {[%emt 0:00:06]} 36. c3 {[%emt 0:01:30]} Qc5 {[%emt 0:00:19]} 37. Qf3 {[%emt 0:05:24]} Qg1+ {[%emt 0:00:14]} 38. Bf1 {[%emt 0:01:10]} e4 {[%emt 0:02:14]} 39. Qf4 {[%emt 0:00:20]} Qa7 {[%emt 0:03:23]} 40. Qxe4 {[%emt 0:00:48]} Re8 {[%emt 0:01:15]} 41. Qh4 {[%emt 0:01:10]} Kg8 {[%emt 0:02:36]} 42. Qd4 {[%emt 0:01:08]} Qxd4 {[%emt 0:02:37]} 43. cxd4 {[%emt 0:00:30]} Re4 {[%emt 0:00:00]} 44. Bc3 {[%emt 0:02:37]} Rbe8 {[%emt 0:00:00]} 45. Kc1 {[%emt 0:00:37]} Re1+ {[%emt 0:00:28]} 46. Bxe1 {[%emt 0:00:03]} Rxe1+ {[%emt 0:00:00]} 47. Kd2 {[%emt 0:00:20]} Rxf1 {[%emt 0:00:00]} 48. Kc3 {[%emt 0:00:25]} Be7 {[%emt 0:00:14]} 49. Kxb3 {[%emt 0:00:48]} Kf8 {[%emt 0:00:07]} 50. Kc4 {[%emt 0:00:00]} Ke8 {[%emt 0:00:36]} 51. a5 {[%emt 0:00:44]} Kd7 {[%emt 0:00:02]} 52. Kb5 {[%emt 0:00:05]} Rf4 {[%emt 0:01:48]} 53. a6 {[%emt 0:02:01]} Kc7 {[%emt 0:00:12]} 54. Rh3 {[%emt 0:00:28]} Rxd4 {[%emt 0:00:04]} 55. Rc3+ {[%emt 0:00:42]} Kb8 {[%emt 0:00:10]} 56. a7+ {[%emt 0:00:03]} Kxa7 {[%emt 0:01:21]} 57. Rc7+ {[%emt 0:00:06]} Kb8 {[%emt 0:00:02]} 58. Rxe7 {[%emt 0:00:03]} Rxd5+ {[%emt 0:00:00]} 59. Kb6 {[%emt 0:01:01]} Kc8 {[%emt 0:00:00]} 60. Kc6 {[%emt 0:00:52]} Rc5+ {[%emt 0:00:00]} 61. Kxd6 {[%emt 0:00:00]} Rxf5 {[%emt 0:00:00]} 62. Rxg7 {[%emt 0:00:00]} Rg5 {[%emt 0:01:08]} 63. Ke6 {[%emt 0:00:24]} Rxg2 {[%emt 0:00:07]} 64. Kf7 {[%emt 0:00:26]} Rxb2 {[%emt 0:06:23]} 65. Rh7 {[%emt 0:00:18]} Kd7 {[%emt 0:00:30]} 66. g7 {[%emt 0:01:02]} Rg2 {[%emt 0:00:10]} 67. Rxh6 {[%emt 0:00:00]} 1-0